[Event "Kragero Resort Chess A 2018"]
[Site "Kragero"]
[Date "2018.02.23"]
[Round "4"]
[White "Hobber, Anders"]
[Black "Baldursson, Hrannar"]
[Result "1/2-1/2"]
[ECO "A46"]
[WhiteElo "2286"]
[BlackElo "2153"]
[Annotator "NA RC"]
[PlyCount "92"]
[EventDate "2018.??.??"]
[EventType "swiss"]
[EventCountry "NOR"]
[SourceTitle "playchess.com"]
[Source "ChessBase"]
[SourceQuality "1"]
[TimeControl "5400+30"]

1. d4 {[%emt 0:00:00]} Nf6 {[%emt 0:00:08]} 2. Nf3 {[%emt 0:00:04]} d6 {[%emt 0:00:07]} 3. g3 {[%emt 0:00:56]} c6 {[%emt 0:01:13]} 4. Bg2 {[%emt 0:00:42]} Nbd7 {[%emt 0:00:11]} 5. O-O {[%emt 0:02:30]} g6 {[%emt 0:00:13]} 6. b3 {[%emt 0:02:32]} Bg7 {[%emt 0:00:32]} 7. Bb2 {[%emt 0:02:18]} O-O {[%emt 0:00:15]} 8. Nbd2 {[%emt 0:03:32]} Qc7 {[%emt 0:00:57]} 9. e4 {[%emt 0:02:37] LiveBook: 34 Games} e5 {[%emt 0:00:23]} 10. dxe5 {[%emt 0:01:16] A49: 1 d4 Nf6 2 Nf3 g6 3 g3: Anti-King's Indian systems} dxe5 {[%emt 0:00:40]} (10... Nxe5 11. Nxe5 dxe5 12. a4 Be6 13. Qe2 Rfd8 14. Nc4 Ne8 15. Rfd1 Rxd1+ 16. Rxd1 Rd8 17. Rxd8 Qxd8 18. Nxe5 {1-0 (35) Moussard,J (2571)-Haldorsen,B (2405) chess.com INT 2018}) 11. Qe2 {[%emt 0:02:17]} b5 {[%emt 0:01:04]} 12. a4 $146 {[%emt 0:02:45]} ({Predecessor:} 12. Rfd1 Bb7 13. Ne1 Rfe8 14. Ndf3 a6 15. Nd2 Rac8 16. c4 b4 17. a3 a5 {1-0 (48) Lane,N (1930)-Anton,S (1751) Nadi 2013}) 12... b4 {[%emt 0:03:33]} 13. Nc4 {[%emt 0:06:59]} Ba6 {[%emt 0:00:42]} 14. Rfe1 {[%emt 0:13:41]} Rfe8 {[%emt 0:00:51]} 15. Rad1 {[%emt 0:01:10]} Rad8 {[%emt 0:14:06]} 16. Nfd2 {[%emt 0:05:26]} Nb6 {[%emt 0:01:41]} 17. Bf1 {[%emt 0:05:29]} Nfd7 {[%emt 0:14:54]} 18. Qf3 {[%emt 0:07:43]} Nc5 {[%emt 0:01:09]} 19. Nxb6 {[%emt 0:01:04]} Bxf1 {[%emt 0:00:28]} 20. Rxf1 {[%emt 0:00:49]} axb6 {[%emt 0:00:31]} 21. Qe2 {[%emt 0:04:49]} Ne6 {[%emt 0:01:33]} 22. Nf3 {[%emt 0:03:13]} Nd4 {[%emt 0:01:35]} 23. Bxd4 {[%emt 0:01:31]} exd4 {[%emt 0:00:08]} 24. Rfe1 {[%emt 0:00:52]} c5 {[%emt 0:01:12]} 25. Nd2 {[%emt 0:02:18]} Re6 {[%emt 0:01:26]} 26. Qd3 {[%emt 0:02:48]} Rde8 {[%emt 0:02:23]} 27. f4 {[%emt 0:01:21]} h5 {[%emt 0:01:28]} 28. Re2 {[%emt 0:02:03]} Qc6 {[%emt 0:05:40]} 29. Rde1 {[%emt 0:00:52]} Rb8 {[%emt 0:06:55]} 30. Nc4 {[%emt 0:01:51]} Rbe8 {[%emt 0:00:51]} 31. Kf2 $16 {[%emt 0:01:38]} Qb7 {[%emt 0:01:50]} 32. e5 {[%emt 0:01:27]} Qd5 {[%emt 0:09:42]} 33. Nd6 {[%emt 0:03:52]} Rxd6 {[%emt 0:02:01]} 34. exd6 {[%emt 0:00:04]} Re3 {[%emt 0:00:16]} 35. Rxe3 {[%emt 0:03:55]} dxe3+ {[%emt 0:00:11]} 36. Kxe3 {[%emt 0:07:08]} Bd4+ {[%emt 0:00:34]} 37. Kd2 {[%emt 0:00:33]} Qxd6 {[%emt 0:00:20]} 38. Kc1 {[%emt 0:00:43]} Qf6 {[%emt 0:00:31]} 39. Kd1 {[%emt 0:01:08]} Kh7 {[%emt 0:01:18]} 40. f5 {[%emt 0:00:59]} gxf5 {[%emt 0:02:04]} 41. Qf3 {[%emt 0:01:02]} Kg6 {[%emt 0:01:28]} 42. Rf1 {[%emt 0:00:16]} Bc3 {[%emt 0:01:13]} 43. Qd3 {[%emt 0:00:24]} Qe6 {[%emt 0:02:19]} 44. h3 {[%emt 0:00:36]} Kg5 {[%emt 0:03:13]} 45. Qd8+ {[%emt 0:00:25]} Kg6 {[%emt 0:02:55]} 46. Qd3 {[%emt 0:00:21]} Kg5 {[%emt 0:00:49]} 1/2-1/2

[Event "Kragero Resort Chess A 2018"]
[Site "Kragero"]
[Date "2018.02.23"]
[Round "5"]
[White "Dahl, Trygve"]
[Black "Sagafos, Magne"]
[Result "1/2-1/2"]
[ECO "C48"]
[WhiteElo "2217"]
[BlackElo "2384"]
[Annotator "RC"]
[PlyCount "41"]
[EventDate "2018.??.??"]
[EventType "swiss"]
[EventCountry "NOR"]
[SourceTitle "playchess.com"]
[Source "ChessBase"]
[SourceQuality "1"]
[TimeControl "5400+30"]

1. e4 {[%emt 0:00:08]} e5 {[%emt 0:00:29]} 2. Nf3 {[%emt 0:00:07]} Nc6 {[%emt 0:00:07]} 3. Nc3 {[%emt 0:00:03]} Nf6 {[%emt 0:00:20]} 4. Bb5 {[%emt 0:00:05]} Bd6 {[%emt 0:02:26]} 5. O-O {[%emt 0:00:36]} O-O {[%emt 0:01:49]} 6. d3 {[%emt 0:00:41]} h6 {[%emt 0:06:22]} 7. a3 {[%emt 0:02:42]} a6 {[%emt 0:03:39]} 8. Bc4 {[%emt 0:01:08]} Bc5 {[%emt 0:07:16]} 9. Be3 {[%emt 0:08:10]} d6 {[%emt 0:05:23]} 10. Bxc5 {[%emt 0:03:01]} dxc5 {[%emt 0:00:06]} 11. h3 {[%emt 0:00:17]} Qd6 {[%emt 0:01:33]} 12. Nh4 {[%emt 0:16:51]} Ne7 {[%emt 0:01:41]} 13. Qf3 {[%emt 0:01:05]} g6 {[%emt 0:05:44]} 14. g4 {[%emt 0:04:43]} Kg7 {[%emt 0:06:46]} 15. Ng2 {[%emt 0:02:22]} g5 {[%emt 0:11:53]} 16. Ne3 {[%emt 0:04:56]} Ng6 {[%emt 0:03:29]} 17. Ne2 {[%emt 0:00:19]} Nh4 {[%emt 0:05:54]} 18. Qg3 {[%emt 0:02:11]} Ng6 {[%emt 0:09:43]} 19. Qf3 {[%emt 0:01:27]} Nh4 {[%emt 0:09:00]} 20. Qg3 {[%emt 0:00:19]} Ng6 {[%emt 0:00:04]} 21. Qf3 {[%emt 0:00:06]} 1/2-1/2

[Event "Kragero Resort Chess A 2018"]
[Site "Kragero"]
[Date "2018.02.23"]
[Round "5"]
[White "Baldursson, Hrannar"]
[Black "Pantzar, Milton"]
[Result "0-1"]
[ECO "C90"]
[WhiteElo "2153"]
[BlackElo "2260"]
[Annotator "RC"]
[PlyCount "68"]
[EventDate "2018.??.??"]
[EventType "swiss"]
[EventCountry "NOR"]
[SourceTitle "playchess.com"]
[Source "ChessBase"]
[SourceQuality "1"]
[TimeControl "5400+30"]

1. e4 {[%emt 0:00:00]} e5 {[%emt 0:00:08]} 2. Nf3 {[%emt 0:00:00]} Nc6 {[%emt 0:00:05]} 3. Bb5 {[%emt 0:00:00]} a6 {[%emt 0:00:04]} 4. Ba4 {[%emt 0:00:08]} Nf6 {[%emt 0:00:06]} 5. d3 {[%emt 0:00:17]} d6 {[%emt 0:00:16]} 6. c3 {[%emt 0:00:08]} Be7 {[%emt 0:00:05]} 7. O-O {[%emt 0:00:24]} O-O {[%emt 0:00:07]} 8. Re1 {[%emt 0:00:37]} b5 {[%emt 0:00:36]} 9. Bb3 {[%emt 0:00:51]} Na5 {[%emt 0:00:35]} 10. Bc2 {[%emt 0:00:14]} c5 {[%emt 0:00:08]} 11. Bg5 {[%emt 0:00:28]} Nc6 {[%emt 0:04:48]} 12. Nbd2 {[%emt 0:00:19]} Nh5 {[%emt 0:12:15]} 13. Be3 {[%emt 0:04:09]} g6 {[%emt 0:08:15]} 14. Bh6 {[%emt 0:02:05]} Ng7 {[%emt 0:02:46]} 15. Nf1 {[%emt 0:00:55]} Qe8 {[%emt 0:13:35]} 16. Ne3 {[%emt 0:02:14]} Bd8 {[%emt 0:02:48]} 17. Nd5 {[%emt 0:03:05]} f6 {[%emt 0:03:11]} 18. a4 {[%emt 0:01:44]} Rb8 {[%emt 0:01:55]} 19. axb5 {[%emt 0:00:42]} axb5 {[%emt 0:00:19]} 20. b4 {[%emt 0:01:43]} cxb4 {[%emt 0:05:46]} 21. Bb3 {[%emt 0:00:57]} Be6 {[%emt 0:01:42]} 22. Nxb4 {[%emt 0:00:43]} Nxb4 {[%emt 0:00:35]} 23. cxb4 {[%emt 0:00:08]} Bb6 {[%emt 0:05:06]} 24. Be3 {[%emt 0:01:59]} Bxe3 {[%emt 0:03:49]} 25. fxe3 {[%emt 0:00:13]} Qf7 {[%emt 0:06:40]} 26. Bxe6 {[%emt 0:00:31]} Qxe6 {[%emt 0:00:53]} 27. Ra7 {[%emt 0:04:30]} Ra8 {[%emt 0:02:15]} 28. Qa1 {[%emt 0:02:57]} Rxa7 {[%emt 0:01:31]} 29. Qxa7 {[%emt 0:00:02]} Qb3 {[%emt 0:00:25]} 30. Rc1 {[%emt 0:00:25]} Qxd3 {[%emt 0:07:58]} 31. Rc7 {[%emt 0:00:10]} Ne6 {[%emt 0:00:40]} 32. Rxh7 {[%emt 0:01:00]} Qxe4 {[%emt 0:01:02]} 33. Re7 {[%emt 0:01:30]} Ra8 {[%emt 0:03:50]} 34. Qd7 {[%emt 0:00:18]} Qxe3+ {[%emt 0:00:21]} 0-1

[Event "Kragero Resort Chess A 2018"]
[Site "Kragero"]
[Date "2018.02.23"]
[Round "5"]
[White "Skotheim, Andreas"]
[Black "Nordquelle, Daniel"]
[Result "1-0"]
[ECO "A34"]
[WhiteElo "2025"]
[BlackElo "2220"]
[Annotator "NA"]
[PlyCount "47"]
[EventDate "2018.??.??"]
[EventType "swiss"]
[EventCountry "NOR"]
[SourceTitle "playchess.com"]
[Source "ChessBase"]
[SourceQuality "1"]
[TimeControl "5400+30"]

1. c4 {[%emt 0:00:00]} c5 {[%emt 0:00:18]} 2. g3 {[%emt 0:00:00]} Nf6 {[%emt 0:00:06]} 3. Bg2 {[%emt 0:00:22]} d5 {[%emt 0:00:07]} 4. cxd5 {[%emt 0:00:10]} Nxd5 {[%emt 0:00:04]} 5. Nc3 {[%emt 0:00:39]} Nc7 {[%emt 0:00:05]} 6. Nf3 {[%emt 0:02:48]} Nc6 {[%emt 0:00:12]} 7. O-O {[%emt 0:00:56]} e5 {[%emt 0:00:08]} 8. a3 {[%emt 0:01:15]} Rb8 {[%emt 0:00:17]} 9. d3 {[%emt 0:02:40]} Be7 {[%emt 0:00:12]} 10. Be3 {[%emt 0:01:47]} O-O {[%emt 0:00:21]} 11. Ne4 {[%emt 0:04:32]} b6 {[%emt 0:00:31]} 12. b4 {[%emt 0:01:02]} cxb4 {[%emt 0:01:10]} 13. axb4 {[%emt 0:00:10]} Bxb4 {[%emt 0:00:45]} 14. Qa4 {[%emt 0:02:23]} b5 $14 {[%emt 0:04:13]} 15. Qc2 {[%emt 0:00:16]} Nd4 {[%emt 0:18:50]} 16. Nxd4 {[%emt 0:06:54]} exd4 {[%emt 0:00:08]} 17. Bf4 {[%emt 0:00:12]} Rb7 {[%emt 0:09:04]} 18. Nf6+ {[%emt 0:04:41]} Qxf6 {[%emt 0:01:55]} 19. Bxb7 {[%emt 0:00:21]} Bxb7 {[%emt 0:00:07]} 20. Qxc7 {[%emt 0:00:33]} Bd5 {[%emt 0:00:39]} 21. Rxa7 {[%emt 0:00:44]} Bc3 {[%emt 0:02:00]} 22. Qc5 {[%emt 0:02:21]} Bc6 {[%emt 0:02:45]} 23. Bd6 {[%emt 0:02:04]} Rc8 {[%emt 0:00:22]} 24. Qxc6 {[%emt 0:00:25]} 1-0

[Event "Kragero Resort Chess A 2018"]
[Site "Kragero"]
[Date "2018.02.24"]
[Round "6"]
[White "Dahl, Trygve"]
[Black "Haug, Johannes"]
[Result "0-1"]
[ECO "C29"]
[WhiteElo "2217"]
[BlackElo "2355"]
[Annotator "NA RC"]
[PlyCount "88"]
[EventDate "2018.??.??"]
[EventType "swiss"]
[EventCountry "NOR"]
[SourceTitle "playchess.com"]
[Source "ChessBase"]
[SourceQuality "1"]
[TimeControl "5400+30"]

{[%evp 8,88,-39,-43,-45,-52,-24,-35,-27,-47,-19,-18,-16,-31,0,-18,11,-145,-137,-147,-133,-149,32767,32767,32767,32767,-273,-331,-89,-106,-47,-31,-42,-87,-76,-112,-70,-84,-81,-76,-64,-139,-126,-123,-119,-150,-153,-117,-145,-304,-279,-285,-260,-211,-208,-272,-5,0,0,32767,32767,32767,32767,32767,-129,-268,-968,32767,32767,-456,-1508,32767,32767,-1437,-6430,-9789,32767,32767,-10364,-4133,32767,-6404,-12841]} 1. e4 {[%emt 0:03:05]} e5 {[%emt 0:00:33]} 2. Nc3 {[%emt 0:02:03]} Nf6 {[%emt 0:01:09]} 3. f4 {[%emt 0:02:23]} d5 {[%emt 0:09:01]} 4. fxe5 {[%emt 0:00:06]} Nxe4 {[%emt 0:01:25]} 5. d3 {[%emt 0:00:05]} Nxc3 {[%emt 0:15:20]} 6. bxc3 {[%emt 0:00:19]} d4 {[%emt 0:03:05]} 7. Nf3 {[%emt 0:01:19]} c5 {[%emt 0:01:57]} 8. Be2 {[%emt 0:00:06]} Nc6 {[%emt 0:05:49]} 9. O-O {[%emt 0:00:06] LiveBook: 4 Games} Be7 {[%emt 0:00:09]} 10. Qe1 {[%emt 0:00:06]} O-O {[%emt 0:12:10]} 11. Qg3 {[%emt 0:00:41] C29: Vienna Game: 2...Nf6 3 f4} Bf5 {[%emt 0:03:44]} 12. h4 {[%emt 0:20:36]} (12. Nxd4 $11 Nxd4 13. cxd4) (12. c4 Qd7 13. Bf4 Rae8 14. a3 Bd8 15. Rf2 Qe6 16. Rb1 b6 17. Re1 Qg6 18. h3 Qxg3 19. Bxg3 Bg6 20. Bh2 Re6 21. Bf1 Rfe8 22. Rfe2 h6 23. Kf2 Bc7 24. g4 Bd8 {½-½ (24) Vojta,T (2361)-Lagerman,R (2348) Marianske Lazne 2008}) 12... dxc3 {[%emt 0:08:26]} 13. h5 {[%emt 0:02:43]} Kh8 $146 {[%emt 0:01:01]} ({Predecessor:} 13... g6 14. Bh6 Nd4 15. Nxd4 Qxd4+ 16. Kh1 Rfe8 17. Rab1 b6 18. Rxf5 Bh4 {0-1 (42) Nabelek,M (2099)-Bures,M (2205) Ostrava 2002}) 14. h6 {[%emt 0:05:58]} gxh6 {[%emt 0:03:35]} 15. Bxh6 {[%emt 0:01:42]} Rg8 {[%emt 0:00:10]} 16. Qf4 {[%emt 0:02:59]} Be6 {[%emt 0:02:07]} 17. Kf2 {[%emt 0:08:19]} Nd4 $2 {[%emt 0:05:01]} (17... Rg4 $19 {and Black stays clearly on top.} 18. Qc1 Nd4) 18. Nxd4 {[%emt 0:02:02]} Qxd4+ {[%emt 0:03:55]} 19. Qxd4 {[%emt 0:00:46]} cxd4 {[%emt 0:00:04]} 20. Bf3 {[%emt 0:01:46]} (20. Rh1 $11 {remains equal.}) 20... Bh4+ {[%emt 0:03:32]} 21. Ke2 {[%emt 0:00:25]} Bg5 {[%emt 0:01:17]} 22. Rh1 {[%emt 0:00:37]} Rg6 {[%emt 0:01:59]} 23. Bxg5 {[%emt 0:03:23]} Rxg5 {[%emt 0:00:10]} 24. Rh4 {[%emt 0:07:57]} (24. Be4 $142) 24... Rxe5+ {[%emt 0:05:02]} 25. Kf2 {[%emt 0:00:06]} Rd8 {[%emt 0:00:48]} 26. Rah1 {[%emt 0:02:10]} Kg7 {[%emt 0:01:13]} 27. Rxh7+ {[%emt 0:01:08]} Kf6 {[%emt 0:00:06]} 28. R1h5 $2 {[%emt 0:05:35]} (28. R7h6+ $17 Ke7 29. a3) 28... Rxh5 {[%emt 0:05:50]} ({Worse is} 28... Bxa2 29. R7h6+ Kg7 30. Rh7+ Kf6 31. R7h6+ Kg7 32. Rh7+ Kf6 $11) 29. Rxh5 {[%emt 0:00:10]} Bxa2 {[%emt 0:00:26]} 30. Ra5 {[%emt 0:04:46] [#]} Be6 $1 {[%emt 0:04:09]} ({Schlechter ist} 30... Bb1 31. Bd1 $15) 31. Bxb7 {[%emt 0:01:30] [#]} Rd7 $2 {[%emt 0:00:01]} (31... Rb8 $1 $19 {[%cal Rb8b7]} 32. Rxa7 Kg5) 32. Bf3 {[%emt 0:02:53]} Ke7 {[%emt 0:01:02]} 33. Ra4 {[%emt 0:01:10]} Kd8 {[%emt 0:01:20]} 34. Bc6 {[%emt 0:00:56]} Rd6 {[%emt 0:00:12]} 35. Bb5 {[%emt 0:03:21] [#]} Kc7 $1 {[%emt 0:01:31]} 36. Rxa7+ {[%emt 0:00:38]} (36. Bc4 $17) 36... Kb6 {[%emt 0:00:07]} 37. Ra6+ {[%emt 0:00:31]} Kc5 {[%emt 0:00:01]} 38. Rxd6 {[%emt 0:00:50]} Kxd6 {[%emt 0:00:02]} 39. Ba4 {[%emt 0:00:31]} Kc5 {[%emt 0:01:29]} 40. Ke1 {[%emt 0:04:07]} Bg4 {[%emt 0:00:08]} 41. Bb3 {[%emt 0:00:32]} f6 {[%emt 0:00:27]} 42. Kf2 {[%emt 0:01:35]} Kb4 {[%emt 0:00:35]} 43. Kg3 {[%emt 0:04:17]} Be2 {[%emt 0:00:17]} 44. Bc4 {[%emt 0:00:53]} Ka3 $19 {[%emt 0:01:12]} 0-1

[Event "Kragero Resort Chess A 2018"]
[Site "Kragero"]
[Date "2018.02.24"]
[Round "6"]
[White "Bergsson, Stefan"]
[Black "Kaasen, Tor Fredrik"]
[Result "0-1"]
[ECO "B40"]
[WhiteElo "2093"]
[BlackElo "2335"]
[Annotator "NA RC"]
[PlyCount "76"]
[EventDate "2018.??.??"]
[EventType "swiss"]
[EventCountry "NOR"]
[SourceTitle "playchess.com"]
[Source "ChessBase"]
[SourceQuality "1"]
[TimeControl "5400+30"]

{[%evp 8,76,31,29,28,16,47,62,55,59,62,49,52,56,67,58,65,52,57,35,59,39,59,25,37,0,0,8,50,8,39,41,52,43,43,41,37,31,52,32767,30,32767,32767,21,29,32767,25,18,18,0,0,0,-6,-36,-17,-316,-348,-337,-358,-511,-540,-812,-616,-520,-656,-861,-536,-1012,-1121,-1028,-984]} 1. e4 {[%emt 0:00:00]} c5 {[%emt 0:03:43]} 2. Nf3 {[%emt 0:00:35]} e6 {[%emt 0:00:47]} 3. b3 {[%emt 0:01:35]} Nc6 {[%emt 0:01:16]} 4. Bb2 {[%emt 0:01:10] B40: Sizilianisch (Klassisches System mit e7-e6)} b6 {[%emt 0:01:40]} (4... Nf6 5. e5 Nd5 6. c4 Nde7 7. g3 d6 8. Bg2 Ng6 9. exd6 e5 10. h4 Bxd6 11. h5 Nge7 12. h6 g6 13. Nc3 f6 14. Qe2 O-O {½-½ (66) Onischuk,V (2637)-Vidit,S (2715) Riadh 2017}) 5. g3 {[%emt 0:06:23]} Bb7 {[%emt 0:03:33]} 6. Bg2 {[%emt 0:02:40]} d6 {[%emt 0:00:51]} 7. d4 {[%emt 0:03:42]} cxd4 {[%emt 0:02:34]} 8. Nxd4 {[%emt 0:01:17]} Rc8 $146 {[%emt 0:00:14]} ({Vorgänger:} 8... a6 9. O-O Qc7 10. c4 Nf6 11. Nc3 Be7 {1-0 (28) Georgiev,K (2494)-Ungureanu,V (2287) Chalkidiki 2007}) 9. c4 {[%emt 0:02:10]} Nf6 {[%emt 0:00:17]} 10. O-O {[%emt 0:01:30]} Be7 {[%emt 0:00:29]} 11. Nc3 {[%emt 0:02:11]} O-O {[%emt 0:00:35]} 12. Qd2 {[%emt 0:00:42]} Qc7 {[%emt 0:01:40]} 13. Rad1 {[%emt 0:01:36]} a6 {[%emt 0:00:37]} 14. Rfe1 {[%emt 0:00:11]} Rfd8 {[%emt 0:01:02]} 15. h3 {[%emt 0:04:08]} Qb8 {[%emt 0:01:17]} 16. Kh2 {[%emt 0:01:29]} Nxd4 {[%emt 0:01:17]} 17. Qxd4 {[%emt 0:00:06]} Bc6 {[%emt 0:00:06]} 18. a4 {[%emt 0:06:35]} (18. Nd5 $5 Bxd5 19. cxd5 $14 (19. exd5 e5 $14)) 18... b5 {[%emt 0:10:34]} 19. axb5 {[%emt 0:06:11]} axb5 {[%emt 0:00:07]} 20. Nd5 {[%emt 0:01:08]} Bxd5 {[%emt 0:04:51]} 21. cxd5 {[%emt 0:06:13]} e5 {[%emt 0:02:31]} 22. Qb4 {[%emt 0:00:18]} Nd7 {[%emt 0:02:59]} 23. Rc1 {[%emt 0:07:36]} Nc5 {[%emt 0:04:19]} 24. Bf1 {[%emt 0:00:24]} Bg5 {[%emt 0:00:37]} 25. Ra1 {[%emt 0:04:58]} Qb6 {[%emt 0:02:24]} 26. Kg1 {[%emt 0:03:55]} Rb8 {[%emt 0:03:31]} 27. h4 {[%emt 0:01:50]} Bh6 {[%emt 0:00:27]} 28. Bc1 {[%emt 0:05:29]} Bxc1 {[%emt 0:02:28]} 29. Rexc1 {[%emt 0:00:28]} Rf8 {[%emt 0:00:14]} 30. Ra5 {[%emt 0:02:57]} Nxe4 {[%emt 0:01:53]} 31. Qe1 $2 {[%emt 0:06:26] [#]} ({White should play} 31. Rc2 $15 f5 32. Rxb5) 31... Nxf2 $1 {[%emt 0:03:39]} 32. Kg2 {[%emt 0:02:26]} ({Don't go for} 32. Rxb5 $2 Nh3+ 33. Kg2 Qg1+ 34. Kf3 {[#]} e4+ $1 {[%mdl 512]} 35. Qxe4 Qf2+ 36. Kg4 f5+ 37. Kxh3 fxe4 $19) 32... Ng4 {[%emt 0:01:07]} 33. Rc6 {[%emt 0:01:17]} (33. Rxb5 $142 Qd4 34. Rxb8 Rxb8 35. Kh3) 33... Qd4 {[%emt 0:02:14]} 34. Rxd6 {[%emt 0:03:48]} Rbc8 {[%emt 0:03:03]} 35. Ra2 {[%emt 0:00:56]} Rc3 {[%emt 0:00:26]} 36. Bxb5 {[%emt 0:02:49]} Qc5 {[%emt 0:09:45]} 37. Qd2 {[%emt 0:06:29]} (37. Be2 $142 Rxb3 38. Bxg4 Qxd6 39. Qd1) 37... Ne3+ {[%emt 0:01:32]} 38. Kh2 {[%emt 0:02:14]} Rxb3 $19 {[%emt 0:02:10]} ({Weaker is} 38... Qxd6 39. Qxc3 Qxd5 40. Bc6 $15) 0-1

[Event "Kragero Resort Chess A 2018"]
[Site "Kragero"]
[Date "2018.02.25"]
[Round "8"]
[White "Houska, Jovanka"]
[Black "Risting, Eivind Olav"]
[Result "1-0"]
[ECO "A40"]
[WhiteElo "2408"]
[BlackElo "2308"]
[Annotator "ChessBase"]
[PlyCount "55"]
[EventDate "2018.??.??"]
[EventType "swiss"]
[EventCountry "NOR"]
[SourceTitle "playchess.com"]
[Source "ChessBase"]
[SourceQuality "1"]
[TimeControl "5400+30"]

1. d4 {[%emt 0:00:00]} e6 {[%emt 0:02:09]} 2. c4 {[%emt 0:00:00]} b6 {[%emt 0:00:49]} 3. a3 {[%emt 0:00:36]} Bb7 {[%emt 0:00:21]} 4. Nc3 {[%emt 0:00:05]} Nf6 {[%emt 0:00:59]} 5. d5 {[%emt 0:00:36]} exd5 {[%emt 0:24:45]} 6. cxd5 {[%emt 0:00:08]} Bd6 {[%emt 0:01:03]} 7. e4 {[%emt 0:06:52]} Qe7 {[%emt 0:02:57]} 8. Bg5 {[%emt 0:04:45]} Be5 {[%emt 0:04:27]} 9. Rc1 {[%emt 0:03:33]} O-O {[%emt 0:01:16]} 10. Bd3 {[%emt 0:10:13]} c6 {[%emt 0:14:15]} 11. Nge2 {[%emt 0:03:32]} Na6 {[%emt 0:14:00]} 12. b4 {[%emt 0:01:49]} Nc7 {[%emt 0:01:36]} 13. f4 {[%emt 0:03:28]} Bxc3+ {[%emt 0:02:15]} 14. Rxc3 {[%emt 0:00:05]} h6 {[%emt 0:01:49]} 15. Bh4 {[%emt 0:02:40]} g5 {[%emt 0:02:44]} 16. fxg5 {[%emt 0:01:33]} Nxe4 {[%emt 0:00:35]} 17. Rc4 {[%emt 0:01:05]} Nd6 {[%emt 0:08:09]} 18. gxh6 {[%emt 0:01:56]} f6 {[%emt 0:01:04]} 19. Rg4+ {[%emt 0:04:00]} Kh8 {[%emt 0:00:06]} 20. O-O {[%emt 0:01:46]} Nxd5 {[%emt 0:00:34]} 21. Nf4 {[%emt 0:00:40]} Nxf4 {[%emt 0:01:27]} 22. Rgxf4 {[%emt 0:00:05]} c5 {[%emt 0:02:49]} 23. Bxf6+ {[%emt 0:04:15]} Rxf6 {[%emt 0:00:08]} 24. Rxf6 {[%emt 0:00:03]} Rg8 {[%emt 0:01:35]} 25. R6f2 {[%emt 0:14:12]} Qe5 {[%emt 0:04:11]} 26. h7 {[%emt 0:00:43]} Rxg2+ {[%emt 0:00:43]} 27. Rxg2 {[%emt 0:00:04]} Qe3+ {[%emt 0:00:10]} 28. Rff2 {[%emt 0:00:14]} 1-0

[Event "Kragero Resort Chess A 2018"]
[Site "Kragero"]
[Date "2018.02.25"]
[Round "8"]
[White "Sagafos, Magne"]
[Black "Tryggestad, Andreas Garberg"]
[Result "1/2-1/2"]
[ECO "B40"]
[WhiteElo "2384"]
[BlackElo "2241"]
[Annotator "NA"]
[PlyCount "117"]
[EventDate "2018.??.??"]
[EventType "swiss"]
[EventCountry "NOR"]
[SourceTitle "playchess.com"]
[Source "ChessBase"]
[SourceQuality "1"]
[TimeControl "5400+30"]

1. e4 {[%emt 0:00:00]} c5 {[%emt 0:10:22]} 2. Nf3 {[%emt 0:00:00]} e6 {[%emt 0:00:06]} 3. Nc3 {[%emt 0:00:02]} Nc6 {[%emt 0:00:04]} 4. Bb5 {[%emt 0:00:05]} Nd4 {[%emt 0:00:03]} 5. O-O {[%emt 0:01:07] LiveBook: 309 Games} a6 {[%emt 0:01:19]} 6. Bd3 {[%emt 0:00:06]} Nxf3+ {[%emt 0:07:32]} 7. Qxf3 {[%emt 0:00:11]} b5 $146 {[%emt 0:00:32] B30: Sizilianisch (Rossolimo-Variante)} ({Black should try} 7... Qc7 $11) ({Vorgänger:} 7... Bd6 8. Be2 Qc7 9. Qh3 Ne7 10. d3 Ng6 11. g3 h5 12. f4 h4 13. Qg2 hxg3 14. hxg3 Be7 15. Be3 {1-0 (50) Alekseenko,K (2590)-Krasenkow,M (2671) Stockholm 2018}) 8. b3 {[%emt 0:13:08]} Bb7 {[%emt 0:00:41]} 9. Qg3 {[%emt 0:04:48]} Nf6 {[%emt 0:02:50]} 10. Re1 {[%emt 0:09:31]} (10. e5 $5 {[%cal Re5f6]} Nh5 11. Qg4 $14) 10... Nh5 {[%emt 0:06:30]} 11. Qe3 {[%emt 0:13:27]} Be7 {[%emt 0:01:36]} 12. Be2 {[%emt 0:04:40]} Nf6 {[%emt 0:00:43]} 13. Bf3 {[%emt 0:03:28]} d5 {[%emt 0:03:00]} 14. exd5 {[%emt 0:01:33]} Nxd5 {[%emt 0:00:17]} 15. Bxd5 {[%emt 0:10:14]} Bxd5 {[%emt 0:00:14]} 16. Qe5 {[%emt 0:03:19]} Bb7 {[%emt 0:05:07]} 17. Bb2 {[%emt 0:04:06]} Bf6 {[%emt 0:04:39]} 18. Qxc5 {[%emt 0:02:48]} Qxd2 $2 {[%emt 0:01:53] [#]} (18... Rc8 $17 {bleibt auf Kurs.} 19. Qe3 O-O) 19. Ne4 {[%emt 0:04:59]} (19. Rad1 $1 $16 {[%cal Rd1d2]} Qxc2 20. Qc7 (20. Qd6 $2 Rd8 $17) 20... Qxb2 21. Qd7+ Kf8 22. Qxb7) 19... Bxe4 $1 {[%emt 0:01:50]} 20. Bxf6 {[%emt 0:00:10]} gxf6 {[%emt 0:00:35]} 21. Rxe4 {[%emt 0:00:13]} Rd8 {[%emt 0:01:06]} 22. Qc6+ {[%emt 0:01:53]} Qd7 {[%emt 0:00:08]} 23. Qxa6 {[%emt 0:00:33]} Qd5 {[%emt 0:02:08]} 24. Rae1 {[%emt 0:07:13]} f5 {[%emt 0:01:39] [#]} (24... Ra8 $16 {was necessary.} 25. Qb6 O-O) 25. R4e3 $1 {[%emt 0:05:27]} O-O {[%emt 0:04:50]} 26. a4 {[%emt 0:01:08]} b4 {[%emt 0:07:15]} 27. Qe2 {[%emt 0:00:55]} Kh8 {[%emt 0:03:35]} 28. Rd3 {[%emt 0:01:02]} Qc5 {[%emt 0:00:19]} 29. h4 {[%emt 0:01:39]} Rc8 {[%emt 0:02:06]} 30. Rd2 {[%emt 0:00:47]} Kg8 {[%emt 0:19:45]} 31. Qh5 {[%emt 0:00:10]} Qc3 {[%emt 0:01:28]} 32. Re3 {[%emt 0:00:47]} Qa1+ {[%emt 0:01:49]} 33. Kh2 {[%emt 0:01:44]} Kh8 {[%emt 0:00:41]} 34. Qh6 {[%emt 0:00:47]} Rg8 {[%emt 0:01:04]} 35. h5 {[%emt 0:01:11]} Rg7 {[%emt 0:00:57]} 36. g3 {[%emt 0:01:33]} Rcg8 {[%emt 0:02:21]} 37. Red3 {[%emt 0:00:14]} f4 {[%emt 0:01:09]} 38. Qxf4 {[%emt 0:02:28]} Rg4 {[%emt 0:00:03]} 39. Rd1 {[%emt 0:00:21]} Rxf4 {[%emt 0:00:14]} 40. Rxa1 {[%emt 0:00:05]} Rxf2+ {[%emt 0:00:04]} 41. Kh3 $16 {[%emt 0:00:52]} Rxc2 {[%emt 0:00:02]} 42. Rf1 {[%emt 0:01:14]} f5 {[%emt 0:04:48]} 43. Rf4 {[%emt 0:00:39]} Rg5 {[%emt 0:02:36]} 44. h6 {[%emt 0:00:39]} Kg8 {[%emt 0:01:19]} 45. Rxb4 {[%emt 0:00:21]} Kf7 {[%emt 0:00:00]} 46. Rh4 {[%emt 0:00:47]} e5 {[%emt 0:00:33]} 47. Rd7+ {[%emt 0:00:16]} Ke6 {[%emt 0:00:22]} 48. Rg7 {[%emt 0:00:21]} Kf6 {[%emt 0:00:29]} 49. Rxg5 Kxg5 50. a5 {[%emt 0:00:53]} e4 {[%emt 0:00:01]} 51. a6 {[%emt 0:00:58]} Ra2 {[%emt 0:00:01]} 52. g4 {[%emt 0:00:26]} f4 {[%emt 0:03:13]} 53. Rh5+ {[%emt 0:00:01]} Kg6 {[%emt 0:00:06]} 54. Rf5 {[%emt 0:00:30]} Rxa6 {[%emt 0:00:39]} 55. Rxf4 {[%emt 0:00:07]} Ra3 {[%emt 0:00:07]} 56. Kh4 {[%emt 0:01:01]} Rxb3 {[%emt 0:01:06]} 57. g5 {[%emt 0:00:31]} Rf3 {[%emt 0:00:07]} 58. Rxe4 {[%emt 0:00:12]} Rf4+ {[%emt 0:00:09]} 59. Rxf4 1/2-1/2